bitfinex/quotes_SOLUSD_20250619
["timestamp","ask_amount","ask_price","bid_price","bid_amount"]
[1750294165349,6.34037596,147.92,147.88,6.34037596]
[1750294166053,6.34037596,147.92,147.89,6.7617824]
[1750294166543,153.34037596,147.93,147.89,30.00661437]
[1750294166868,5.05456879,147.92,147.9,24.99002482]
[1750294167078,147.0,147.93,147.9,24.99002482]
[1750294167441,153.34037596,147.93,147.89,23.66623841]
[1750294167645,6.34037596,147.91,147.89,23.66623841]
[1750294168261,6.34037596,147.92,147.88,6.34037596]
[1750294168460,5.05552242,147.91,147.88,6.34037596]
[1750294168663,6.34037596,147.92,147.88,6.34037596]
[1750294168861,11.3959509,147.91,147.87,48.65946418]
[1750294169075,6.34037596,147.91,147.87,48.65946418]
[1750294171073,147.0,147.93,147.87,48.65946418]
[1750294171375,6.34037596,147.91,147.87,48.65946418]
[1750294172357,5.05811763,147.9,147.87,48.65946418]
[1750294172559,6.34037596,147.91,147.87,48.65946418]
[1750294172776,5.05837327,147.9,147.87,48.65946418]
[1750294173077,6.34037596,147.91,147.87,48.65946418]
[1750294173279,147.0,147.89,147.87,23.66943936]
[1750294175352,147.0,147.89,147.87,30.00981532]
[1750294182185,147.0,147.89,147.87,23.66943936]
[1750294182480,147.0,147.89,147.87,30.00981532]
[1750294182979,147.0,147.89,147.88,6.34037596]
[1750294183371,147.0,147.89,147.87,30.00981532]
[1750294190188,147.0,147.89,147.87,16.9067424]
[1750294191188,147.0,147.89,147.87,23.66943936]
[1750294197604,147.0,147.89,147.87,30.00981532]
[1750294201276,147.0,147.89,147.87,23.66943936]
[1750294203394,147.0,147.89,147.88,24.99002482]
[1750294204502,147.0,147.89,147.88,31.75226447]
[1750294206097,147.0,147.89,147.88,25.41188851]
[1750294206299,147.0,147.89,147.88,31.75226447]
[1750294206684,152.06829435,147.89,147.88,31.75226447]
[1750294207188,147.0,147.89,147.88,31.75226447]
[1750294207587,153.32343497,147.94,147.89,18.64964886]
[1750294207785,5.06805205,147.93,147.92,6.34037596]
[1750294207986,5.06805205,147.93,147.92,24.99002482]
[1750294208186,5.06805205,147.93,147.92,18.64964886]
[1750294208384,5.06805205,147.93,147.92,24.99002482]
[1750294208597,5.06805205,147.93,147.91,18.64964886]
[1750294208908,147.0,147.94,147.91,18.64964886]
[1750294209076,5.06629314,147.93,147.91,18.64964886]
[1750294209278,147.0,147.94,147.91,18.64964886]
[1750294209479,5.06485039,147.93,147.91,18.64964886]
[1750294209694,147.0,147.94,147.92,6.76041103]
[1750294209903,5.06476668,147.93,147.92,6.76041103]
[1750294210602,5.06476668,147.93,147.91,23.6627968]
[1750294210807,153.34037596,147.94,147.91,23.6627968]
[1750294210992,5.06351278,147.93,147.91,23.6627968]
[1750294211189,153.34037596,147.94,147.91,23.6627968]
[1750294211414,5.06258559,147.93,147.91,23.6627968]
[1750294211704,153.34037596,147.94,147.91,23.6627968]
[1750294211877,5.06248391,147.93,147.91,23.6627968]
[1750294212080,147.0,147.94,147.93,6.75995403]
[1750294213891,153.34037596,147.94,147.91,23.6627968]
[1750294214094,5.06099917,147.93,147.91,23.6627968]
[1750294214397,153.34037596,147.94,147.91,23.6627968]
[1750294214709,6.34037596,147.92,147.89,6.7617824]
[1750294214902,6.34037596,147.9,147.89,6.7617824]
[1750294215081,11.40068426,147.9,147.89,6.7617824]
[1750294215484,11.40068426,147.9,147.85,12.86027596]
[1750294215485,11.40068426,147.9,147.86,18.64964886]
[1750294215705,152.0603083,147.89,147.86,18.64964886]
[1750294215898,147.0,147.89,147.86,18.64964886]
[1750294217006,147.0,147.89,147.87,6.76269696]
[1750294218894,153.34037596,147.89,147.87,6.76269696]
[1750294219095,147.0,147.89,147.87,6.76269696]
[1750294219921,158.40206642,147.88,147.87,6.76269696]
[1750294220110,147.0,147.87,147.84,6.76406926]
[1750294220291,6.34037596,147.85,147.8,23.25398692]
[1750294220595,6.34037596,147.85,147.82,23.67744554]
[1750294220789,147.0,147.87,147.82,30.0178215]
[1750294220989,5.06124323,147.86,147.82,30.0178215]
[1750294221188,153.34037596,147.87,147.83,24.99002482]
[1750294221405,5.05932065,147.86,147.83,24.99002482]
[1750294221581,153.34037596,147.87,147.83,24.99002482]
[1750294221795,5.05914533,147.86,147.83,24.99002482]
[1750294222001,153.34037596,147.87,147.83,24.99002482]
[1750294222201,5.05914533,147.86,147.83,24.99002482]
[1750294222397,153.34037596,147.87,147.83,24.99002482]
[1750294222604,5.05798089,147.86,147.83,24.99002482]
[1750294222807,153.34037596,147.87,147.84,23.67424242]
[1750294222997,5.05777137,147.86,147.84,23.67424242]
[1750294223204,153.34037596,147.87,147.84,23.67424242]
[1750294223406,11.39713683,147.86,147.84,23.67424242]
[1750294223705,11.39716451,147.85,147.84,23.67424242]
[1750294223906,11.39716451,147.85,147.84,6.76406926]
[1750294224692,11.39716451,147.85,147.81,23.67809921]
[1750294224904,6.34037596,147.84,147.81,23.67809921]
[1750294225100,6.34037596,147.85,147.81,23.67809921]
[1750294225815,6.34037596,147.84,147.81,23.67809921]
[1750294226526,6.34037596,147.83,147.81,6.76544212]
[1750294226712,153.34037596,147.83,147.81,6.76544212]
[1750294226900,153.34037596,147.83,147.8,23.68047344]
[1750294227100,147.0,147.83,147.8,30.0208494]
[1750294227501,147.0,147.83,147.8,23.68047344]
[1750294228633,6.34037596,147.82,147.8,23.68047344]
[1750294228798,147.0,147.81,147.79,6.76635766]
[1750294229003,147.0,147.8,147.79,6.76635766]
[1750294229213,6.34037596,147.81,147.79,6.76635766]
[1750294229413,6.34037596,147.8,147.79,6.76635766]
[1750294230420,6.34037596,147.81,147.79,6.76635766]
[1750294230599,6.34037596,147.8,147.79,6.76635766]
[1750294230805,6.34037596,147.8,147.78,6.76681553]
[1750294231195,26.0,147.82,147.78,6.76681553]
[1750294231395,6.34037596,147.8,147.78,6.76681553]
[1750294232722,147.0,147.79,147.78,6.76681553]
[1750294233026,153.34037596,147.79,147.78,6.76681553]
[1750294235503,147.0,147.79,147.78,6.76681553]
[1750294238635,6.34037596,147.8,147.78,6.76681553]
[1750294239933,6.34037596,147.79,147.78,6.76681553]
[1750294240138,6.34037596,147.79,147.75,6.7681895]
[1750294240345,6.34037596,147.77,147.75,6.7681895]
[1750294240515,32.34037596,147.78,147.75,6.7681895]
[1750294240837,32.34037596,147.78,147.75,23.68866327]
[1750294242022,26.0,147.78,147.75,23.68866327]
[1750294242514,26.0,147.78,147.75,30.02903923]
[1750294242914,26.0,147.78,147.75,23.68866327]
[1750294243436,6.34037596,147.76,147.75,6.7681895]
[1750294243738,6.34037596,147.76,147.73,6.7691058]
[1750294243916,147.0,147.75,147.73,6.7691058]
[1750294244305,147.0,147.75,147.73,13.10948176]
[1750294244507,147.0,147.75,147.73,6.7691058]
[1750294246544,153.34037596,147.75,147.73,6.7691058]
[1750294247619,147.0,147.74,147.73,6.7691058]
[1750294248516,147.0,147.74,147.72,6.76956404]
[1750294248732,147.0,147.73,147.72,6.76956404]
[1750294248932,147.0,147.73,147.72,13.10994]
[1750294249323,147.0,147.73,147.72,6.76956404]
[1750294250619,147.0,147.73,147.71,13.1103983]
[1750294250823,147.0,147.73,147.71,6.77002234]
[1750294251018,147.0,147.73,147.71,13.1103983]
[1750294252144,147.0,147.73,147.71,6.77002234]
[1750294252442,147.0,147.73,147.71,13.1103983]
[1750294253326,147.0,147.73,147.72,6.34037596]
[1750294254448,147.0,147.73,147.72,13.10994]
[1750294255641,147.0,147.73,147.72,6.76956404]
[1750294258050,6.34037596,147.73,147.72,6.76956404]
[1750294259162,32.34037596,147.73,147.72,6.76956404]
[1750294259347,32.34037596,147.73,147.69,23.69824317]
[1750294259522,147.0,147.72,147.69,23.69824317]
[1750294259845,153.34037596,147.72,147.69,23.69824317]
[1750294260618,153.34037596,147.72,147.69,6.77093912]
[1750294261629,153.34037596,147.72,147.68,23.6997932]
[1750294261825,147.0,147.72,147.68,30.04016916]
[1750294262140,153.34037596,147.72,147.68,23.6997932]
[1750294263345,147.0,147.71,147.67,6.77185616]
[1750294263531,53.86,147.73,147.67,6.77185616]
[1750294263532,6.34037596,147.69,147.67,6.77185616]
[1750294263733,147.0,147.68,147.67,6.77185616]
[1750294264444,147.0,147.68,147.64,6.77323218]
[1750294264445,6.34037596,147.68,147.64,6.77323218]
[1750294264643,153.34037596,147.67,147.64,6.77323218]
[1750294265035,6.34037596,147.65,147.63,30.61366617]
[1750294265235,6.34037596,147.65,147.63,6.77353893]
[1750294265441,11.37461797,147.65,147.63,6.77353893]
[1750294265638,6.34037596,147.65,147.63,6.77353893]
[1750294265951,11.37461797,147.65,147.63,6.77353893]
[1750294266251,6.34037596,147.65,147.63,6.77353893]
[1750294266430,11.37461797,147.65,147.63,6.77353893]
[1750294266630,6.34037596,147.65,147.63,6.77353893]
[1750294266841,5.03424201,147.65,147.63,6.77353893]
[1750294267043,6.34037596,147.65,147.63,6.77353893]
[1750294267346,5.03424201,147.65,147.61,23.71077483]
[1750294267654,5.03424201,147.66,147.61,23.71077483]
[1750294267957,11.37461797,147.65,147.61,23.71077483]
[1750294268262,6.34037596,147.65,147.61,23.71077483]
[1750294268474,11.37461797,147.65,147.61,23.71077483]
[1750294268630,6.34037596,147.65,147.61,23.71077483]
[1750294268964,5.03424201,147.65,147.61,6.77460876]
[1750294269134,6.34037596,147.64,147.61,6.77460876]
[1750294270067,6.34037596,147.63,147.6,6.77506775]
[1750294270454,6.34037596,147.62,147.6,6.77506775]
[1750294270767,6.34037596,147.61,147.6,6.77506775]
[1750294271127,32.34037596,147.62,147.6,6.77506775]
[1750294271735,32.34037596,147.62,147.58,23.71510926]
[1750294272835,6.34037596,147.61,147.58,23.71510926]
[1750294273361,32.34037596,147.62,147.58,23.71510926]
[1750294274138,6.34037596,147.61,147.58,6.7759859]
[1750294274466,6.34037596,147.61,147.58,23.71595066]
[1750294274835,37.37461797,147.63,147.59,6.34037596]
[1750294275034,147.0,147.64,147.6,6.34037596]
[1750294275239,13.230315,147.66,147.63,6.34037596]
[1750294275439,13.230315,147.66,147.62,18.64964886]
[1750294275642,13.230315,147.66,147.65,13.11314941]
[1750294276350,13.230315,147.66,147.65,6.77277345]
[1750294279842,13.230315,147.66,147.64,6.77323218]
[1750294280252,19.57069096,147.66,147.64,6.77323218]
[1750294282073,19.57069096,147.66,147.63,23.70769405]
[1750294282266,13.230315,147.66,147.63,23.70769405]
[1750294282670,13.230315,147.66,147.63,30.04807001]
[1750294283550,13.230315,147.66,147.64,6.34037596]
[1750294284156,13.230315,147.66,147.65,6.77277345]
[1750294284369,13.230315,147.66,147.65,13.11314941]
[1750294284550,13.230315,147.66,147.65,31.76279827]
[1750294285087,147.0,147.73,147.65,88.59979914]
[1750294285088,6.34037596,147.73,147.65,88.59979914]
[1750294285382,6.34037596,147.73,147.68,6.34037596]
[1750294286457,6.34037596,147.72,147.68,6.34037596]
[1750294287074,6.34037596,147.73,147.68,6.34037596]
[1750294287501,6.34037596,147.72,147.68,6.34037596]
[1750294287887,26.0,147.74,147.68,6.34037596]
[1750294288105,6.34037596,147.72,147.68,6.34037596]
[1750294288302,6.34037596,147.72,147.69,6.77093912]
[1750294288507,6.34037596,147.73,147.69,6.77093912]
[1750294288695,6.34037596,147.73,147.69,13.11131508]
[1750294289012,26.0,147.74,147.69,13.11131508]
[1750294289013,6.34037596,147.74,147.7,6.34037596]
[1750294289326,6.34037596,147.75,147.71,6.34037596]
[1750294289675,11.36715837,147.75,147.71,6.34037596]
[1750294290018,6.34037596,147.74,147.7,6.34037596]
[1750294290219,32.04,147.76,147.71,6.77002234]
[1750294290415,6.34037596,147.74,147.71,6.77002234]
[1750294291324,37.06678241,147.76,147.71,30.03545415]
[1750294291481,147.0,147.74,147.72,6.34037596]
[1750294291677,147.0,147.75,147.71,23.69507819]
[1750294291916,147.0,147.75,147.72,6.34037596]
[1750294292208,32.34037596,147.76,147.68,35.57700768]
[1750294292209,6.34037596,147.73,147.68,35.57700768]
[1750294292379,6.34037596,147.71,147.68,16.92735882]
[1750294292575,6.34037596,147.71,147.69,6.77093912]
[1750294292808,6.34037596,147.7,147.69,6.77093912]
[1750294293122,6.34037596,147.71,147.69,6.77093912]
[1750294293482,6.34037596,147.7,147.69,6.77093912]
[1750294294011,6.34037596,147.7,147.66,14.1118]
[1750294294012,32.34037596,147.7,147.66,6.77231477]
[1750294294176,6.34037596,147.67,147.63,42.3575673]
[1750294295308,6.34037596,147.66,147.63,42.3575673]
[1750294295808,6.34037596,147.66,147.63,23.70791844]
[1750294296008,26.0,147.67,147.63,23.70791844]
[1750294296212,6.34037596,147.66,147.63,23.70791844]
[1750294297498,6.34037596,147.67,147.63,23.70791844]
[1750294298288,6.34037596,147.66,147.63,23.70791844]
[1750294299004,6.34037596,147.66,147.63,6.77369098]
[1750294299589,6.34037596,147.65,147.63,6.77369098]
[1750294301816,6.34037596,147.66,147.63,6.77369098]
[1750294303217,6.34037596,147.64,147.63,6.77369098]
[1750294303588,6.34037596,147.64,147.62,6.77396963]
[1750294303898,6.34037596,147.63,147.6,6.77506775]
[1750294304099,5.05028267,147.65,147.6,6.77506775]
[1750294304425,6.34037596,147.61,147.6,6.77506775]
[1750294305215,6.34037596,147.61,147.57,25.42609393]
[1750294305391,6.34037596,147.6,147.57,25.42609393]
[1750294306022,6.34037596,147.61,147.57,42.36720662]
[1750294306528,6.34037596,147.61,147.57,48.70758258]
[1750294306812,6.34037596,147.62,147.57,48.70758258]
[1750294307397,6.34037596,147.62,147.58,6.34037596]
[1750294307598,153.34037596,147.65,147.61,6.34037596]
[1750294307905,153.2922667,147.71,147.62,18.64964886]
[1750294308218,6.34037596,147.66,147.61,24.99002482]
[1750294309228,6.34037596,147.66,147.62,23.70952445]
[1750294311293,31.04873896,147.68,147.62,23.70952445]
[1750294311524,6.34037596,147.65,147.62,23.70952445]
[1750294311710,6.34037596,147.64,147.62,23.70952445]
[1750294312706,6.34037596,147.64,147.62,6.77414984]
[1750294313522,6.34037596,147.64,147.61,6.77460876]
[1750294314115,6.34037596,147.64,147.61,23.71113067]
[1750294314907,5.04998217,147.66,147.61,23.71113067]
[1750294315112,6.34037596,147.64,147.61,23.71113067]
[1750294315428,6.34037596,147.65,147.61,23.71113067]
[1750294315727,6.34037596,147.64,147.61,23.71113067]
[1750294316821,6.34037596,147.65,147.61,23.71113067]
[1750294317611,6.34037596,147.64,147.61,23.71113067]
[1750294318525,5.04998217,147.66,147.61,23.71113067]
[1750294318701,6.34037596,147.64,147.61,23.71113067]
[1750294321112,6.34037596,147.63,147.61,6.77460876]
[1750294321314,6.34037596,147.62,147.61,6.77460876]
[1750294322223,6.34037596,147.62,147.59,23.7143335]
[1750294322810,6.34037596,147.6,147.57,6.77644507]
[1750294323017,6.34037596,147.59,147.57,6.77644507]
[1750294323518,6.34037596,147.6,147.57,6.77644507]
[1750294323936,153.34037596,147.61,147.57,23.71755776]
[1750294324345,6.34037596,147.6,147.57,23.71755776]
[1750294325143,153.34037596,147.61,147.57,23.71755776]
[1750294327036,153.34037596,147.61,147.57,30.05793372]
[1750294327337,147.0,147.61,147.58,6.34037596]
[1750294327550,147.0,147.61,147.57,23.71755776]
[1750294327843,6.34037596,147.6,147.57,23.71755776]
[1750294328332,153.34037596,147.61,147.57,23.71755776]
[1750294329608,6.34037596,147.6,147.57,23.71755776]
[1750294331019,153.34037596,147.61,147.57,30.05793372]
[1750294331404,147.0,147.61,147.57,30.05793372]
[1750294331630,147.0,147.61,147.58,6.34037596]
[1750294332937,153.34037596,147.61,147.57,31.65193372]
[1750294333343,147.0,147.6,147.57,31.65193372]
[1750294335315,147.0,147.6,147.57,25.31155776]
[1750294336133,153.34037596,147.6,147.57,23.71755776]
[1750294336313,6.34037596,147.59,147.57,23.71755776]
[1750294336531,6.34037596,147.59,147.57,6.77644507]
[1750294339131,147.0,147.58,147.57,6.77644507]
[1750294340925,147.0,147.58,147.57,13.11682103]
[1750294341834,147.0,147.58,147.57,25.42609393]
[1750294342043,147.0,147.58,147.57,31.76646989]
[1750294344254,147.0,147.58,147.57,13.11682103]
[1750294344453,147.0,147.58,147.57,31.76646989]
[1750294347538,147.0,147.58,147.57,38.04806989]
[1750294347964,147.0,147.58,147.57,65.90806989]
[1750294349043,6.34037596,147.63,147.59,6.77552679]
[1750294349228,152.06599922,147.62,147.59,13.11590275]
[1750294349427,147.0,147.62,147.59,13.11590275]
[1750294349836,147.0,147.62,147.59,6.77552679]
[1750294350035,147.0,147.62,147.59,13.11590275]
[1750294350238,147.0,147.62,147.59,30.05471974]
[1750294350832,147.0,147.62,147.59,23.71434378]
[1750294351558,147.0,147.62,147.61,24.99002482]
[1750294351855,159.63264266,147.68,147.62,18.64964886]
[1750294352036,158.40566269,147.67,147.63,6.34037596]
[1750294352235,5.06528673,147.66,147.63,6.34037596]
[1750294352455,5.06528673,147.65,147.63,6.34037596]
[1750294352640,5.06440961,147.66,147.63,6.34037596]
[1750294352840,147.0,147.67,147.62,25.00474886]
[1750294353041,147.0,147.67,147.63,6.34037596]
[1750294353675,147.0,147.67,147.64,30.0466886]
[1750294353963,147.0,147.67,147.64,23.70631264]
[1750294354127,147.0,147.67,147.64,30.0466886]
[1750294354532,147.0,147.67,147.64,23.70631264]
[1750294354967,32.34037596,147.65,147.62,6.77414984]
[1750294355148,6.34037596,147.63,147.62,6.77414984]
[1750294355351,11.40266003,147.63,147.62,6.77414984]
[1750294355566,11.40266003,147.63,147.59,16.93879944]
[1750294355742,6.34037596,147.61,147.59,16.93879944]
[1750294356062,11.4042901,147.6,147.58,6.7759859]
[1750294356268,6.34037596,147.59,147.58,6.7759859]
[1750294356938,11.40526306,147.59,147.58,6.7759859]
[1750294357964,37.40526306,147.59,147.57,6.77644507]
[1750294358186,6.34037596,147.58,147.57,6.77644507]
[1750294358666,32.34037596,147.59,147.57,6.77644507]
[1750294359766,32.34037596,147.59,147.56,6.77690431]
[1750294361140,32.34037596,147.59,147.56,23.71916508]
[1750294361872,26.0,147.59,147.56,30.05954104]
[1750294362569,26.0,147.59,147.56,23.71916508]
[1750294364772,32.34037596,147.59,147.56,23.71916508]
[1750294366962,26.0,147.59,147.56,23.71916508]
[1750294367162,32.34037596,147.59,147.56,23.71916508]
[1750294367483,6.34037596,147.59,147.56,23.71916508]
[1750294368590,6.34037596,147.58,147.56,16.94226077]
[1750294369286,37.4058166,147.59,147.56,16.94226077]
[1750294369587,32.34037596,147.59,147.56,16.94226077]
[1750294369876,32.34037596,147.59,147.55,6.7773636]
[1750294369877,11.40568593,147.58,147.55,6.7773636]
[1750294370085,158.40568593,147.58,147.55,6.7773636]
[1750294370284,153.34037596,147.58,147.55,6.7773636]
[1750294370582,32.34037596,147.56,147.5,6.77966101]
[1750294370786,6.34037596,147.53,147.5,6.77966101]
[1750294370979,147.0,147.52,147.5,6.77966101]
[1750294371353,147.0,147.52,147.5,13.12003697]
[1750294372088,147.0,147.52,147.5,6.77966101]
[1750294374563,147.0,147.52,147.51,6.34037596]
[1750294374956,147.0,147.56,147.52,18.64964886]
[1750294375160,147.0,147.56,147.53,6.34037596]
[1750294375357,147.0,147.56,147.54,6.77782296]
[1750294377094,147.0,147.56,147.53,23.72371942]
[1750294377282,147.0,147.56,147.55,6.34037596]
[1750294378059,147.0,147.56,147.55,24.99002482]
[1750294378374,6.34037596,147.6,147.55,24.99002482]
[1750294378574,6.34037596,147.6,147.56,6.34037596]
[1750294379106,6.34037596,147.59,147.56,23.71916508]
[1750294379406,6.34037596,147.58,147.56,23.71916508]
[1750294380307,6.34037596,147.57,147.53,6.77828238]
[1750294380590,6.34037596,147.55,147.53,6.77828238]
[1750294380792,6.34037596,147.56,147.53,6.77828238]
[1750294381498,11.39557903,147.57,147.53,6.77828238]
[1750294381791,153.34037596,147.58,147.53,30.06436429]
[1750294382388,147.0,147.58,147.54,24.99002482]
[1750294382595,147.0,147.58,147.55,6.34037596]
[1750294383888,147.0,147.58,147.56,6.77690431]
[1750294384194,179.34037596,147.59,147.56,6.77690431]
[1750294385875,179.34037596,147.59,147.55,23.72050403]
[1750294386392,6.34037596,147.58,147.55,23.72050403]
[1750294388079,179.34037596,147.59,147.55,23.72050403]
[1750294388474,179.34037596,147.59,147.55,30.06087999]
[1750294389488,179.34037596,147.59,147.55,23.72050403]
[1750294392694,173.0,147.59,147.55,30.06087999]
[1750294392992,179.34037596,147.59,147.55,30.06087999]
[1750294393911,179.34037596,147.59,147.55,23.72050403]
[1750294394076,6.34037596,147.58,147.55,23.72050403]
[1750294395383,147.0,147.57,147.55,23.72050403]
[1750294396486,147.0,147.57,147.55,16.94314043]
[1750294397390,153.34037596,147.57,147.54,6.77782296]
[1750294397695,6.34037596,147.55,147.54,6.77782296]
[1750294398007,6.34037596,147.55,147.5,23.28951998]
[1750294398175,6.34037596,147.54,147.51,6.77920141]
[1750294398376,11.40053828,147.54,147.51,6.77920141]
[1750294398598,6.34037596,147.54,147.5,23.72880503]
[1750294398808,11.40053828,147.54,147.5,23.72880503]
[1750294399100,6.34037596,147.54,147.5,23.72880503]
[1750294399288,5.06016232,147.54,147.5,30.06918099]
[1750294399486,6.34037596,147.55,147.5,23.72880503]
[1750294399487,5.06016232,147.53,147.5,23.72880503]
[1750294399803,5.06016232,147.54,147.5,30.06918099]
[1750294400100,6.34037596,147.55,147.5,30.06918099]
[1750294400298,5.06818573,147.54,147.5,30.06918099]
[1750294400483,6.34037596,147.55,147.5,30.06918099]
[1750294400682,5.06948446,147.54,147.5,30.06918099]
[1750294400899,5.06948446,147.53,147.5,30.06918099]
[1750294401206,5.06948446,147.54,147.52,6.77874186]
[1750294401401,6.34037596,147.55,147.52,6.77874186]
[1750294401581,5.06905942,147.54,147.52,6.77874186]
[1750294401781,6.34037596,147.55,147.52,6.77874186]
[1750294402083,5.0690304,147.54,147.52,6.77874186]
[1750294402381,6.34037596,147.55,147.52,6.77874186]
[1750294402712,11.40880635,147.54,147.52,6.77874186]
[1750294402902,6.34037596,147.54,147.52,6.77874186]
[1750294404004,6.34037596,147.54,147.51,6.77920141]
[1750294404384,11.40844992,147.54,147.51,6.77920141]
[1750294404600,6.34037596,147.54,147.51,6.77920141]
[1750294404908,11.40844992,147.54,147.51,6.77920141]
[1750294405212,6.34037596,147.54,147.51,6.77920141]
[1750294405716,11.40789263,147.54,147.51,6.77920141]
[1750294405890,6.34037596,147.54,147.51,6.77920141]
[1750294406089,11.40789263,147.54,147.51,6.77920141]
[1750294406410,11.40789263,147.55,147.51,30.06758089]
[1750294406586,5.06751667,147.54,147.51,30.06758089]
[1750294407214,147.0,147.53,147.51,30.06758089]
[1750294408806,147.0,147.53,147.52,6.34037596]
[1750294409392,147.0,147.53,147.51,23.72720493]
[1750294409599,147.0,147.53,147.52,6.34037596]
[1750294410284,147.0,147.53,147.52,13.11911782]
[1750294411211,147.0,147.53,147.52,31.76876668]
[1750294412418,173.0,147.58,147.53,18.64964886]
[1750294412591,173.0,147.58,147.52,82.60933066]
[1750294412592,147.0,147.58,147.56,6.34037596]
[1750294412790,147.0,147.58,147.57,6.34037596]
[1750294413020,152.06694634,147.58,147.57,6.34037596]
[1750294413204,147.0,147.58,147.52,76.2689547]
[1750294413397,147.0,147.58,147.56,6.34037596]
[1750294414324,147.0,147.58,147.57,6.77644507]
[1750294414908,147.0,147.58,147.57,13.11682103]
[1750294419713,147.0,147.58,147.57,6.77644507]
[1750294420318,153.34037596,147.58,147.57,6.77644507]
[1750294420723,147.0,147.58,147.57,6.77644507]
[1750294420902,147.0,147.58,147.56,6.77690431]
[1750294423317,153.34037596,147.57,147.56,6.77690431]
[1750294423823,158.40494848,147.57,147.56,6.77690431]
[1750294424604,158.40494848,147.57,147.53,30.06436429]
[1750294424800,153.34037596,147.57,147.53,30.06436429]
[1750294427123,147.0,147.57,147.53,30.06436429]
[1750294427303,153.34037596,147.57,147.53,30.06436429]
[1750294427504,147.0,147.57,147.54,6.34037596]
[1750294428129,147.0,147.57,147.34,15.61444361]
[1750294428130,6.7903,147.53,147.34,15.61444361]
[1750294428312,6.7903,147.53,147.43,33.90875626]
[1750294428313,6.34037596,147.44,147.43,33.90875626]
[1750294428623,26.0,147.41,147.35,6.34037596]
[1750294428801,6.34037596,147.39,147.31,3.45535296]
[1750294429002,27.96,147.42,147.34,6.34037596]
[1750294429205,26.0,147.41,147.31,18.64964886]
[1750294429427,26.0,147.41,147.38,6.34037596]
[1750294429617,26.0,147.45,147.4,6.34037596]
[1750294429815,26.0,147.43,147.4,6.34037596]
[1750294430012,26.0,147.43,147.38,6.34037596]
[1750294430013,32.34037596,147.43,147.38,6.34037596]
[1750294430206,6.34037596,147.41,147.37,6.34037596]
[1750294430528,6.34037596,147.41,147.37,13.12578264]
[1750294430825,6.34037596,147.41,147.37,6.34037596]
[1750294431025,6.34037596,147.38,147.31,6.7884054]
[1750294431228,6.34037596,147.35,147.31,13.12878136]
[1750294431434,6.34037596,147.35,147.31,6.7884054]
[1750294431613,6.34037596,147.35,147.31,13.12878136]
[1750294431808,6.34037596,147.35,147.31,6.7884054]
[1750294432109,6.34037596,147.35,147.3,31.82408682]
[1750294432306,32.78477695,147.39,147.3,30.27508682]
[1750294432307,6.34037596,147.34,147.3,30.27508682]
[1750294432505,6.34037596,147.42,147.3,30.27508682]
[1750294432506,121.45679004,147.48,147.31,46.70964886]
[1750294432725,6.34037596,147.38,147.32,10.80816863]
[1750294432928,6.34037596,147.42,147.3,30.27508682]
[1750294432929,6.34037596,147.35,147.3,36.61546278]
[1750294433256,1.6639,147.39,147.29,6.34037596]
[1750294433528,26.0,147.34,147.3,6.34037596]
[1750294433736,26.0,147.34,147.28,13.24298815]
[1750294433737,6.34037596,147.31,147.28,6.78978815]
[1750294434026,6.34037596,147.3,147.26,48.75751089]
[1750294434210,6.34037596,147.31,147.26,48.75751089]
[1750294435026,26.0,147.33,147.27,6.34037596]
[1750294435220,6.34037596,147.32,147.27,6.34037596]
[1750294435404,6.34037596,147.31,147.28,6.78978815]
[1750294436406,6.34037596,147.31,147.27,23.7658722]
[1750294437528,6.34037596,147.31,147.27,30.10624816]
[1750294438641,6.34037596,147.31,147.27,23.7658722]
[1750294438844,6.34037596,147.29,147.27,23.7658722]
[1750294439824,6.34037596,147.29,147.27,16.975623]
[1750294440056,6.34037596,147.31,147.27,16.975623]
[1750294440440,6.34037596,147.3,147.27,16.975623]
[1750294440839,6.34037596,147.29,147.27,16.975623]
[1750294441061,6.34037596,147.29,147.26,6.7907103]
[1750294442044,6.34037596,147.28,147.26,6.7907103]
[1750294442655,6.34037596,147.29,147.26,6.7907103]
[1750294444046,6.34037596,147.29,147.25,13.13154743]
[1750294444341,6.34037596,147.29,147.25,30.10947612]
[1750294445158,32.34037596,147.3,147.25,23.76910016]
[1750294445332,32.34037596,147.3,147.26,6.34037596]
[1750294445960,26.0,147.3,147.27,30.10624816]
[1750294446151,26.0,147.31,147.28,6.34037596]
[1750294446348,153.34037596,147.33,147.29,6.34037596]
[1750294446767,153.34037596,147.33,147.28,18.64964886]
[1750294446768,147.0,147.33,147.28,18.64964886]
[1750294446946,153.34037596,147.33,147.28,18.64964886]
[1750294447255,153.34037596,147.33,147.29,6.34037596]
[1750294447962,6.34037596,147.32,147.29,6.78932717]